bitfinex/quotes_ETHUSD_20251201
["timestamp","ask_amount","ask_price","bid_price","bid_amount"]
[1764549144111,0.246,2873.4,2871.5,0.4838]
[1764549144400,0.3903,2873.4,2871.5,0.0008]
[1764549144608,0.3903,2874.0,2871.6,0.4696]
[1764549144823,4.98005432,2874.7,2871.9,4.98005432]
[1764549144824,0.3903,2874.7,2871.9,4.98005432]
[1764549144962,0.3903,2874.7,2871.6,0.79824066]
[1764549144963,0.32898988,2873.9,2872.0,0.49800543]
[1764549145162,0.72559411,2874.9,2871.5,0.0008]
[1764549145163,0.3903,2875.4,2872.1,4.98005432]
[1764549145363,0.3903,2875.4,2871.8,2.919747]
[1764549145364,0.32863101,2876.3,2873.3,4.842517]
[1764549145706,0.32863101,2875.8,2873.4,0.72559411]
[1764549146002,0.248,2876.7,2874.7,0.72559411]
[1764549146210,6.94927032,2878.0,2873.6,3.42776311]
[1764549146211,0.248,2876.6,2873.6,3.42776311]
[1764549146366,0.1355,2873.8,2870.5,0.09999999]
[1764549146567,0.1355,2873.8,2870.2,0.05]
[1764549146568,0.1355,2876.0,2873.4,4.98005432]
[1764549146897,0.32863101,2875.7,2871.9,4.37485]
[1764549147099,0.2853946,2877.6,2872.9,2.750383]
[1764549147100,0.252,2875.9,2872.9,2.750383]
[1764549147269,14.32539306,2875.6,2872.9,0.2939583]
[1764549147468,0.32863101,2876.7,2875.5,0.1892]
[1764549148008,0.32863101,2877.3,2875.5,5.16925432]
[1764549148297,4.14654496,2878.7,2876.0,4.98005432]
[1764549148461,3.67240487,2878.7,2876.5,4.98005432]
[1764549148663,6.94733916,2878.8,2876.6,0.49800543]
[1764549148863,0.32864066,2878.2,2876.7,0.254]
[1764549149171,3.4719958,2880.2,2876.7,0.254]
[1764549149172,0.32864066,2879.3,2877.7,4.98005432]
[1764549149372,0.32864066,2879.3,2877.5,5.23405432]
[1764549149593,0.80274066,2879.3,2877.6,0.52340543]
[1764549149773,0.4741,2879.3,2877.4,0.254]
[1764549150102,0.4741,2879.3,2875.3,0.05]
[1764549150103,5.234826,2879.1,2875.9,0.4696]
[1764549150300,0.5396,2879.0,2875.9,0.4696]
[1764549150600,0.5396,2879.0,2875.0,0.4696]
[1764549150601,0.32864066,2877.7,2875.0,0.4696]
[1764549150809,0.32864066,2876.8,2875.4,4.17738791]
[1764549150963,3.47222222,2880.0,2876.7,4.17738791]
[1764549150964,0.32864066,2878.5,2876.7,4.17738791]
[1764549151171,0.32864066,2878.6,2877.4,4.17738791]
[1764549151387,4.17738791,2880.6,2876.8,0.255]
[1764549151388,0.32864066,2879.1,2877.9,4.17738791]
[1764549151569,1.3,2881.7,2877.9,4.17738791]
[1764549151570,0.1986,2880.7,2878.2,4.17738791]
[1764549151886,0.32864066,2880.0,2878.2,0.255]
[1764549152087,0.32864066,2880.4,2879.2,4.17738791]
[1764549152467,5.75197,2880.3,2877.6,0.1892]
[1764549152705,0.32864066,2878.9,2877.0,4.64698791]
[1764549152874,0.4741,2881.2,2878.5,4.17738791]
[1764549153074,0.4741,2881.2,2879.0,4.17738791]
[1764549153296,3.94487606,2881.2,2878.7,4.17738791]
[1764549153612,3.94487606,2881.2,2878.8,0.4696]
[1764549153613,7.41565212,2881.2,2878.8,0.4696]
[1764549153768,0.4741,2881.1,2878.9,0.46469879]
[1764549153970,6.994187,2881.0,2878.1,0.4696]
[1764549154231,0.4741,2881.1,2877.1,0.1892]
[1764549154232,4.17738791,2880.4,2877.1,0.1892]
[1764549154518,0.256,2880.9,2875.9,4.17738791]
[1764549154519,0.05,2879.5,2875.9,4.17738791]
[1764549154669,4.17738791,2879.6,2876.0,3.47705146]
[1764549154871,0.32864066,2878.2,2876.9,4.17738791]
[1764549155207,0.32864066,2878.7,2877.4,4.17738791]
[1764549155504,4.17738791,2880.4,2876.5,3.47644193]
[1764549155505,0.4741,2878.6,2876.5,3.47644193]
[1764549155676,0.4741,2878.6,2876.3,0.4696]
[1764549155878,0.4741,2878.6,2875.0,0.4696]
[1764549155879,0.32864066,2877.1,2875.0,0.4696]
[1764549156107,0.32864066,2877.1,2874.1,3.47927601]
[1764549156108,2.441971,2877.0,2874.1,3.47927601]
[1764549156309,2.441971,2877.0,2873.1,0.001]
[1764549156310,0.32864066,2875.6,2873.1,0.001]
[1764549156467,0.32864066,2874.4,2873.1,0.001]
[1764549156811,0.1986,2876.9,2873.1,0.001]
[1764549156812,0.4741,2877.4,2874.3,2.74192]
[1764549157026,0.32864066,2876.7,2875.4,4.17738791]
[1764549157176,0.32864066,2876.7,2875.2,4.17738791]
[1764549157503,0.32864066,2876.7,2875.8,4.17738791]
[1764549157707,0.32864066,2876.7,2875.0,3.47822505]
[1764549157708,0.4741,2876.6,2874.3,0.4696]
[1764549157894,0.405504,2876.5,2874.3,0.4696]
[1764549158094,0.405504,2876.3,2873.3,4.17738791]
[1764549158318,0.32864066,2874.1,2873.4,0.0249742]
[1764549158471,0.32864066,2875.7,2874.2,4.17738791]
[1764549158668,0.32864066,2876.6,2873.4,0.001]
[1764549158891,4.17738791,2876.8,2873.4,8.12818558]
[1764549159102,0.90800369,2877.2,2875.5,4.17738791]
[1764549159304,3.47608453,2876.8,2873.5,0.91748078]
[1764549159515,0.32864066,2875.3,2873.8,4.17738791]
[1764549159679,0.32864066,2875.6,2874.3,4.17738791]
[1764549159885,0.32864066,2876.0,2873.6,0.4696]
[1764549160100,0.32864066,2877.0,2875.7,0.405504]
[1764549160309,0.32864066,2877.0,2875.1,0.405504]
[1764549160484,0.32864066,2877.0,2875.6,0.405504]
[1764549160698,0.32864066,2877.0,2875.0,0.4696]
[1764549160699,0.32864066,2877.0,2875.0,4.17738791]
[1764549160889,0.32864066,2875.5,2874.0,4.17738791]
[1764549161087,0.32864066,2875.5,2874.1,0.88733879]
[1764549161492,0.32864066,2875.5,2874.2,7.428058]
[1764549161678,0.32864066,2875.5,2874.4,0.72559411]
[1764549161881,0.32864066,2877.0,2875.5,0.405504]
[1764549162117,0.32864066,2877.0,2875.6,0.4696]
[1764549162301,14.37312688,2877.9,2875.6,0.4696]
[1764549162302,0.4741,2877.4,2875.7,0.405504]
[1764549162638,0.4741,2877.4,2875.3,4.17738791]
[1764549162639,0.32864066,2877.0,2875.4,0.405504]
[1764549162843,0.32864066,2877.0,2875.8,4.58289191]
[1764549162995,0.32864066,2877.3,2876.4,0.405504]
[1764549163187,0.32864066,2878.1,2876.9,0.405504]
[1764549163429,0.32864066,2878.1,2877.0,3.47584289]
[1764549163585,0.32864066,2878.1,2877.0,0.4696]
[1764549163790,0.32864066,2878.1,2877.0,7.42128578]
[1764549164200,0.72559411,2878.8,2877.0,7.42128578]
[1764549164402,1.1056907,2879.7,2877.6,0.405504]
[1764549164403,3.47273807,2879.6,2877.6,0.405504]
[1764549164688,0.32864066,2878.7,2877.4,0.405504]
[1764549164891,0.90705045,2880.4,2877.4,0.405504]
[1764549164892,0.32864066,2879.8,2878.4,0.405504]
[1764549165094,0.32864066,2879.8,2877.5,0.4696]
[1764549165095,0.32864066,2880.0,2877.7,4.17738791]
[1764549165399,0.32864066,2880.0,2878.0,0.405504]
[1764549165603,1.38965765,2880.4,2877.8,0.4696]
[1764549165802,0.4741,2879.9,2877.7,0.4696]
[1764549166126,1.38965765,2880.4,2879.2,0.405504]
[1764549166127,0.32864066,2880.4,2879.2,0.405504]
[1764549166297,0.32864066,2880.7,2879.7,0.405504]
[1764549166486,0.002,2881.6,2880.6,4.17738791]
[1764549166691,0.002,2881.6,2880.7,0.405504]
[1764549166894,0.002,2881.6,2881.2,0.405504]
[1764549167100,0.002,2881.9,2881.2,0.86379319]
[1764549167322,0.8456907,2883.4,2881.8,3.87555743]
[1764549167628,0.32864066,2883.9,2882.5,0.405504]
[1764549167934,0.32864066,2883.9,2882.6,0.4696]
[1764549168092,4.17738791,2883.6,2880.7,6.94275696]
[1764549168291,0.32864066,2882.4,2879.7,0.4696]
[1764549168522,0.8456907,2882.6,2880.4,4.17738791]
[1764549168729,0.8456907,2882.6,2879.7,0.4696]
[1764549168730,0.32864066,2881.7,2879.9,4.17738791]
[1764549168939,0.4741,2882.4,2879.3,3.47306637]
[1764549169089,0.32864066,2881.0,2879.4,0.4696]
[1764549169291,0.32864066,2881.0,2878.5,0.4696]
[1764549169529,1.5330916,2880.5,2877.4,4.64698791]
[1764549169691,0.32864066,2879.1,2878.0,0.4696]
[1764549170593,0.4741,2880.2,2878.0,0.4696]
[1764549170836,0.32864066,2879.5,2878.0,0.4696]
[1764549170993,0.4586,2880.9,2878.0,0.4696]
[1764549170994,0.32864066,2880.1,2879.2,4.17738791]
[1764549171330,0.1986,2881.5,2879.5,0.405504]
[1764549171331,0.32864066,2880.6,2879.5,0.405504]
[1764549171692,0.32864066,2880.6,2879.3,0.4696]
[1764549171693,0.32864066,2881.5,2879.6,0.4696]
[1764549171893,0.002,2879.4,2879.3,3.87854326]
[1764549172144,0.002,2879.4,2879.3,5.75705196]
[1764549172299,0.32864066,2881.5,2879.3,8.09902022]
[1764549172500,0.32864066,2881.5,2879.4,0.4696]
[1764549172702,0.32864066,2881.5,2879.5,0.405504]
[1764549173028,0.32864066,2881.5,2879.5,4.58289191]
[1764549173400,0.72559411,2881.2,2879.7,0.405504]
[1764549173504,0.32864066,2881.5,2880.1,0.405504]
[1764549173705,3.47005343,2881.8,2879.8,0.465]
[1764549173909,0.32864066,2881.1,2879.1,0.465]
[1764549174134,0.66920072,2881.3,2879.8,4.17738791]
[1764549174407,1.1275876,2882.4,2880.4,0.405504]
[1764549174607,0.6702765,2882.5,2881.0,0.405504]
[1764549174815,0.32864066,2882.7,2881.4,0.405504]
[1764549175103,0.32864066,2882.7,2881.0,0.26]
[1764549175104,0.32864066,2882.7,2881.2,0.405504]
[1764549175300,0.32864066,2882.7,2881.3,0.405504]
[1764549175503,7.26667109,2882.7,2881.4,0.405504]
[1764549175704,0.32864066,2882.7,2881.3,0.465]
[1764549176040,7.4039808,2882.6,2880.4,4.64238791]
[1764549176242,0.67056338,2882.5,2879.9,7.64973069]
[1764549176539,0.67056338,2882.5,2878.0,0.05]
[1764549176540,1.1275876,2881.6,2879.3,3.93804698]
[1764549176725,0.32864066,2880.4,2879.3,0.465]
[1764549177031,0.32864066,2880.4,2879.3,3.93799372]
[1764549177254,0.79444066,2880.4,2878.5,0.465]
[1764549177555,1.39615749,2881.1,2878.5,0.465]
[1764549177556,3.47154229,2880.6,2878.5,11.35133362]
[1764549177758,0.32864066,2880.4,2879.0,0.72559411]
[1764549178065,0.32864066,2880.8,2878.8,4.17738791]
[1764549178405,0.32864066,2880.8,2879.3,4.17738791]
[1764549178666,0.32864066,2880.8,2879.3,0.465]
[1764549178822,0.32864066,2880.5,2879.3,0.465]
[1764549179019,0.32864066,2880.8,2878.5,3.47403161]
[1764549179234,0.32864066,2880.8,2878.6,0.465]
[1764549179235,0.32864066,2879.6,2878.6,0.465]
[1764549179434,0.32864066,2879.6,2878.3,3.47419799]
[1764549179435,0.32864066,2879.6,2878.3,3.47427173]
[1764549179726,0.32864066,2879.6,2878.4,0.465]
[1764549180020,0.72559411,2879.9,2878.4,0.465]
[1764549180222,1.39552367,2879.9,2878.1,3.47451443]
[1764549180421,1.39552367,2879.9,2878.1,0.259]
[1764549180422,0.4658,2879.8,2878.1,0.259]
[1764549180647,0.4658,2879.8,2876.6,4.17738791]
[1764549180648,10.91914891,2879.4,2876.6,4.17738791]
[1764549180854,1.6913814,2879.7,2875.9,0.001]
[1764549180855,0.32864066,2878.1,2875.9,0.001]
[1764549181075,0.32864066,2876.9,2875.9,0.001]
[1764549181295,0.72559411,2878.3,2876.0,0.465]
[1764549181296,0.32864066,2877.4,2876.0,0.465]
[1764549181449,0.32864066,2878.3,2876.4,4.17738791]
[1764549181652,0.32864066,2878.3,2876.9,4.17738791]
[1764549181850,0.32864066,2878.1,2876.8,4.17738791]
[1764549182171,4.17738791,2877.7,2875.9,0.001]
[1764549182370,0.32864066,2877.0,2875.9,0.001]
[1764549182583,0.32864066,2877.0,2876.0,0.72559411]
[1764549182782,0.32864066,2877.5,2876.6,4.17738791]
[1764549182985,0.32864066,2877.5,2875.9,0.001]
[1764549183283,0.6583,2877.4,2875.9,3.47813442]
[1764549183457,0.72559411,2877.5,2875.9,3.47813442]
[1764549183462,0.32864066,2876.8,2875.9,0.001]
[1764549183648,0.32864066,2876.8,2876.0,0.465]
[1764549183861,0.4658,2876.8,2875.9,0.001]
[1764549184085,1.1275876,2876.6,2875.6,0.001]
[1764549184293,0.3284769,2876.6,2875.6,0.001]
[1764549184496,0.32864066,2876.1,2875.6,0.001]
[1764549184811,1.1275876,2878.0,2876.0,4.17738791]
[1764549184953,1.1275876,2878.0,2875.6,1.19159411]
[1764549184954,0.32864066,2877.3,2875.9,4.58289191]
[1764549185453,0.32864066,2877.7,2876.1,0.405504]
[1764549185651,0.32864066,2877.7,2876.1,1.15796]
[1764549185892,0.32864066,2877.7,2876.3,4.17738791]
[1764549186065,0.66799972,2878.3,2875.6,0.001]
[1764549186066,0.32864066,2876.5,2875.6,0.001]
[1764549186456,0.4658,2876.4,2875.6,0.001]
[1764549186799,0.48164066,2875.7,2875.3,0.001]
[1764549187092,0.32864066,2875.1,2873.6,4.17738791]
[1764549187389,0.32864066,2875.1,2872.8,0.1876]
[1764549187390,0.32864066,2875.2,2875.0,4.47824234]
[1764549187551,0.72559411,2876.5,2875.0,1.0]
[1764549187752,0.32864066,2875.9,2875.0,11.4347645]
[1764549187978,1.1275876,2878.4,2875.6,6.010157]
[1764549188183,0.32864066,2877.9,2876.5,4.17738791]
[1764549188364,0.32864066,2878.2,2876.5,4.17738791]
[1764549188579,0.4658,2878.6,2876.8,4.17738791]
[1764549188580,0.32864066,2878.4,2876.8,4.17738791]
[1764549188767,3.93971804,2878.6,2876.8,4.17738791]
[1764549188768,0.66865887,2878.5,2876.8,4.17738791]
[1764549188975,0.32864066,2878.3,2877.3,4.17738791]
[1764549189198,1.6913814,2879.3,2877.8,4.17738791]
[1764549189199,0.32864066,2879.3,2877.8,4.17738791]
[1764549189400,7.41217398,2879.2,2876.9,0.465]
[1764549189602,0.32864066,2878.1,2876.2,0.465]
[1764549189799,0.002,2877.2,2875.7,4.43738791]
[1764549190000,0.32864066,2876.8,2875.8,0.01044393]
[1764549190200,0.32864066,2876.8,2875.5,0.001]
[1764549190401,0.4658,2876.7,2875.5,0.001]
[1764549191103,0.32864066,2876.8,2875.5,0.001]
[1764549191307,0.52114066,2875.6,2875.5,0.001]
[1764549191494,4.72426989,2875.6,2875.5,0.001]
[1764549191813,3.80617578,2875.6,2875.5,0.001]
[1764549192117,0.32864066,2875.9,2875.5,0.001]
[1764549192416,1.1295876,2877.2,2875.5,0.466]
[1764549192417,0.32864066,2876.3,2875.5,0.466]
[1764549192584,0.32864066,2876.3,2876.0,4.17738791]
[1764549192782,0.002,2877.2,2876.0,4.17738791]
[1764549192970,3.4776092,2877.2,2875.5,0.001]
[1764549193175,2.18845812,2877.1,2875.5,0.001]
[1764549193417,0.32864066,2876.1,2875.5,0.001]
[1764549193898,1.39401746,2876.8,2875.5,0.001]
[1764549194103,0.32864066,2876.4,2875.5,0.001]
[1764549194406,0.32864066,2875.6,2875.5,0.001]
[1764549194923,1.13352673,2876.7,2875.5,0.001]
[1764549195074,0.4658,2876.7,2875.5,0.001]
[1764549195490,0.72559411,2876.5,2875.5,0.001]
[1764549195711,0.002,2877.2,2875.6,0.4619]
[1764549195881,0.32864066,2876.9,2875.5,0.001]
[1764549196102,0.32864066,2875.9,2875.5,0.001]
[1764549196303,2.11318171,2876.8,2875.0,1.001]
[1764549196304,1.1275876,2875.8,2875.0,1.001]
[1764549196501,0.32864066,2875.1,2875.0,1.001]
[1764549197131,0.80814066,2875.1,2875.0,1.001]
[1764549197496,18.76625533,2875.1,2873.0,0.12]
[1764549197722,0.32864066,2874.1,2873.0,0.12]
[1764549198029,0.32864066,2873.7,2873.1,0.01474328]
[1764549198231,0.4795,2874.9,2873.0,0.5819]
[1764549198397,0.32864066,2874.2,2873.1,0.4619]
[1764549198597,0.32864066,2874.2,2873.1,3.94246106]
[1764549198941,0.32864066,2874.3,2873.2,0.4619]
[1764549199139,0.4795,2875.7,2873.2,0.4619]
[1764549199309,1.1275876,2876.1,2873.7,1.13109811]
[1764549199310,1.39260189,2876.0,2873.7,1.13109811]
[1764549199499,0.4795,2876.2,2874.3,0.405504]
[1764549199694,0.32864066,2875.3,2874.7,1.13109811]
[1764549199900,0.4795,2876.8,2874.6,1.13109811]
[1764549200111,0.4795,2876.8,2873.9,3.75654711]
[1764549200112,0.32864066,2876.4,2875.1,0.72559411]
[1764549200300,0.32864066,2876.4,2875.2,0.867404]
[1764549200616,0.4795,2876.8,2875.6,1.13109811]
[1764549200828,0.002,2877.2,2876.8,0.405504]
[1764549201020,0.002,2877.8,2877.3,0.405504]
[1764549201407,0.002,2877.8,2877.4,7.41261938]
[1764549201747,0.32883957,2878.9,2877.5,0.405504]
[1764549201903,0.32883957,2878.9,2877.7,0.72559411]
[1764549202102,0.32883957,2878.9,2877.8,0.4619]
[1764549202434,0.32883957,2878.9,2877.4,10.42607907]
[1764549202435,0.32883957,2878.9,2877.7,0.405504]
[1764549202635,0.32883957,2879.7,2878.8,0.1932]
[1764549202935,0.32883957,2880.7,2879.1,0.405504]
[1764549203132,1.1275876,2881.2,2878.9,0.729]
[1764549203299,0.66955152,2881.3,2878.1,0.6622]
[1764549203300,1.1275876,2880.4,2878.1,0.6622]
[1764549203533,1.1275876,2879.2,2877.2,0.469]
[1764549203744,1.1275876,2878.9,2876.8,0.469]
[1764549203974,0.32883957,2878.2,2876.8,0.469]
[1764549204272,0.72559411,2878.8,2876.8,0.469]
[1764549204479,0.32883957,2878.4,2876.9,4.64638791]
[1764549204680,0.32883957,2878.6,2878.3,0.1932]
[1764549204890,2.89325249,2880.6,2878.3,0.1932]
[1764549204891,0.32864066,2880.2,2878.6,0.405504]
[1764549205037,0.32864066,2880.1,2878.6,0.405504]
[1764549205232,0.32864066,2880.1,2878.7,0.469]
[1764549205452,0.67035734,2880.4,2879.0,4.17738791]
[1764549205649,0.32864066,2880.4,2879.0,1.45983967]
[1764549205838,0.6497,2881.1,2878.8,10.42100874]
[1764549205839,4.14163522,2880.8,2879.1,0.469]
[1764549206055,0.67035734,2880.7,2879.1,0.469]
[1764549206538,0.1616,2881.1,2879.1,0.469]
[1764549206539,1.1275876,2881.5,2879.8,1.13109811]
[1764549206734,2.50995249,2882.4,2879.1,0.469]
[1764549206735,0.32864066,2881.3,2879.9,0.26]
[1764549206970,0.32864066,2881.3,2879.8,0.405504]
[1764549207180,0.32864066,2881.3,2877.3,0.09999999]
[1764549207181,0.32864066,2880.1,2877.9,0.1932]
[1764549207349,0.32864066,2879.7,2877.9,0.1932]
[1764549207538,2.36420645,2880.1,2878.1,4.17738791]
[1764549207539,0.67282505,2879.8,2878.1,4.17738791]
[1764549207739,0.72559411,2879.9,2878.0,0.469]
[1764549208070,0.72559411,2879.8,2877.8,0.469]
[1764549208283,0.72559411,2879.8,2877.3,0.26]
[1764549208284,0.32864066,2878.8,2877.3,0.729]
[1764549208437,0.72559411,2879.6,2877.3,0.469]
[1764549208438,1.1275876,2879.1,2877.3,0.469]
[1764549208638,1.1275876,2878.7,2876.5,0.469]
[1764549208868,0.32864066,2878.2,2876.8,4.17738791]
[1764549209274,0.32864066,2878.2,2876.9,0.4861]
[1764549209446,1.80041265,2878.8,2876.9,0.4861]
[1764549209447,3.47418634,2878.4,2876.9,0.4861]
[1764549209783,1.1275876,2877.9,2876.5,4.17738791]
[1764549210087,1.1275876,2877.4,2875.2,0.4861]
[1764549210295,0.32864066,2876.4,2875.2,0.4861]
[1764549210787,0.32864066,2876.4,2874.5,5.17056319]
[1764549210788,0.32864066,2876.4,2874.9,3.47838185]
[1764549211018,0.72559411,2876.8,2874.8,3.47950092]
[1764549211019,1.1275876,2876.6,2874.8,3.47950092]
[1764549211189,0.17282505,2876.7,2875.1,4.90956319]
[1764549211375,1.1275876,2878.4,2876.6,3.47632621]
[1764549211563,1.45622826,2878.2,2876.7,0.405504]
[1764549211766,1.45622826,2878.2,2876.6,0.26]
[1764549211767,0.32864066,2878.2,2876.6,0.26]
[1764549211978,0.32864066,2878.1,2876.7,0.405504]
[1764549212180,1.1275876,2878.7,2878.0,0.405504]
[1764549212365,1.1275876,2879.7,2878.7,0.405504]
[1764549212890,1.1275876,2879.7,2878.2,0.0858]
[1764549212891,0.002,2879.9,2879.7,0.405504]
[1764549213397,2.28009417,2881.9,2879.7,0.405504]
[1764549213398,1.1275876,2882.7,2880.3,0.405504]
[1764549213555,0.4939,2883.1,2881.3,0.405504]
[1764549213556,0.32864066,2882.8,2881.3,0.405504]
[1764549213755,0.32864066,2882.8,2881.3,0.665504]
[1764549213987,0.32864066,2882.8,2881.3,1.56529811]
[1764549214287,0.32864066,2882.9,2881.8,0.405504]
[1764549215005,1.1275876,2883.8,2881.8,0.858704]
[1764549215177,0.32864066,2883.8,2882.8,0.405504]
[1764549215572,0.32864066,2883.8,2882.9,6.9374588]
[1764549215767,0.32864066,2883.8,2882.9,3.4687294]
[1764549215967,0.32864066,2883.8,2882.9,6.9374588]
[1764549216206,0.6884,2884.8,2882.9,6.9374588]
[1764549216207,0.6884,2884.8,2883.0,0.405504]
[1764549216407,0.32864066,2884.3,2883.0,0.405504]
[1764549216699,0.32864066,2884.6,2883.0,0.405504]
[1764549216912,0.32864066,2884.6,2883.2,0.405504]
[1764549217202,7.18965736,2886.2,2883.2,1.13109811]
[1764549217203,0.32864066,2885.1,2883.2,1.13109811]
[1764549217516,1.1275876,2885.2,2882.1,8.37922573]
[1764549217797,18.8018762,2885.3,2880.4,1.31019408]
[1764549217798,0.32864066,2883.5,2881.3,3.47064457]
[1764549217997,0.32864066,2882.3,2880.3,4.90956319]
[1764549218210,0.32864066,2882.3,2880.8,4.90956319]
[1764549218571,0.4939,2882.2,2880.2,4.90956319]
[1764549218797,0.4939,2882.2,2879.8,8.83522655]
[1764549218992,0.32864066,2882.3,2880.9,4.90956319]
[1764549219593,0.32864066,2882.6,2881.0,10.866251]
[1764549219807,0.32864066,2883.0,2881.6,0.405504]
[1764549220018,0.32864066,2883.0,2881.2,0.405504]
[1764549220301,0.32864066,2882.0,2880.3,0.259]
[1764549220702,0.32864066,2882.0,2880.3,0.7122]
[1764549221003,0.32864066,2882.0,2880.6,4.90956319]
[1764549221210,0.32864066,2882.0,2880.1,0.72559411]
[1764549221211,0.32864066,2882.2,2880.1,4.90956319]
[1764549221378,0.32864066,2881.5,2880.1,0.4532]
[1764549221579,0.72559411,2881.8,2879.9,0.259]
[1764549221880,0.32864066,2880.2,2879.2,3.47318699]
[1764549222080,1.21949411,2881.8,2878.7,5.36276319]
[1764549222081,0.4939,2881.7,2879.0,0.259]
[1764549222301,0.32864066,2879.8,2879.0,0.259]
[1764549222499,0.72559411,2881.0,2878.2,3.8191717]
[1764549222698,0.32864066,2880.2,2878.2,7.29356541]
[1764549222909,0.4939,2881.0,2878.3,0.4532]
[1764549223121,0.72559411,2881.2,2878.3,0.4532]
[1764549223122,0.4939,2881.2,2878.5,4.90956319]
[1764549223427,0.259,2881.3,2878.4,10.4224569]
[1764549223428,0.4939,2881.1,2878.4,10.4224569]
[1764549223600,0.4939,2882.1,2879.8,0.405504]
[1764549223801,0.32864066,2881.4,2880.3,0.405504]
[1764549224001,3.46897548,2882.7,2880.3,1.13109811]
[1764549224323,7.43162382,2882.8,2880.5,0.405504]
[1764549224523,7.43162382,2882.8,2880.4,0.5498]
[1764549224524,0.32864066,2881.7,2880.4,0.5498]
[1764549224693,0.32864066,2881.7,2880.5,0.405504]
[1764549224896,0.32864066,2881.7,2880.8,0.405504]
[1764549225430,1.39226661,2882.7,2879.7,0.3556]
[1764549225631,1.39226661,2882.7,2878.2,0.0858]
[1764549225632,0.72559411,2881.4,2878.8,3.92686839]
[1764549225845,0.6666725,2881.4,2878.8,0.4532]
[1764549225986,0.4939,2881.6,2878.8,3.9268577]
[1764549225987,0.32864066,2881.1,2878.8,3.9268577]
[1764549226187,0.32864066,2880.5,2878.8,7.40052728]
[1764549226425,0.32864066,2880.5,2878.7,0.259]
[1764549226625,0.32864066,2879.3,2878.1,0.0858]
[1764549226997,0.32864066,2879.3,2878.1,0.539]
[1764549227195,0.002,2879.8,2878.2,4.90956319]
[1764549227502,0.002,2879.8,2878.3,4.90956319]
[1764549227823,0.002,2879.8,2878.5,0.405504]
[1764549228188,0.002,2879.8,2878.7,0.405504]
[1764549228591,3.47449083,2879.8,2878.3,3.474273]
[1764549228794,3.47449083,2879.8,2877.2,3.47553654]
[1764549228795,0.32864066,2878.9,2877.0,3.57244289]
[1764549229026,0.32864066,2878.9,2877.3,4.90956319]
[1764549229203,0.32864066,2878.9,2877.4,0.72559411]
[1764549229527,0.8370577,2879.4,2877.4,7.40435613]
[1764549229728,0.4939,2879.2,2877.4,3.92899644]
[1764549229931,0.4939,2879.2,2876.9,0.258]
[1764549229932,0.8370577,2879.1,2876.9,0.258]
[1764549230233,0.8370577,2879.1,2876.5,0.258]
[1764549230234,0.8370577,2878.3,2876.5,0.258]
[1764549230429,0.8370577,2878.3,2876.2,6.95361934]
[1764549230430,0.32864066,2877.3,2876.2,3.47680967]
[1764549230736,0.8370577,2878.1,2874.8,0.4547]
[1764549230737,0.8370577,2877.4,2874.8,0.4547]
[1764549231032,0.32864066,2875.6,2874.8,0.001]
[1764549232226,1.6913814,2876.7,2874.8,0.001]
[1764549232227,0.32864066,2876.2,2874.9,4.90956319]
[1764549232441,0.66863646,2877.0,2875.4,4.90956319]
[1764549232754,0.32864066,2876.7,2875.0,0.72559411]
[1764549232910,0.32864066,2877.0,2876.0,0.405504]
[1764549233497,0.32864066,2877.1,2876.2,0.405504]
[1764549233701,0.32864066,2877.1,2875.5,6.9553121]
[1764549233902,1.56265181,2877.7,2875.5,3.47765605]
[1764549233903,0.4964,2877.0,2875.5,3.47765605]
[1764549234098,0.4964,2877.0,2875.3,3.73588308]
[1764549234404,0.32864066,2876.5,2875.4,5.31506719]
[1764549234808,0.32864066,2877.2,2876.0,0.405504]
[1764549235011,0.32864066,2877.5,2876.0,0.405504]
[1764549235216,0.32864066,2877.5,2875.3,17.64747488]
[1764549235217,0.32864066,2877.5,2876.4,4.90956319]
[1764549235548,0.4964,2877.6,2875.5,3.47765546]
[1764549235837,0.32864066,2877.5,2875.7,0.405504]
[1764549236214,0.32864066,2877.5,2876.1,1.13109811]
[1764549236418,1.3334577,2878.9,2876.6,1.13109811]
[1764549236620,0.32864066,2878.2,2876.8,0.405504]
[1764549236922,0.32864066,2878.2,2877.0,0.405504]
[1764549237130,0.4964,2878.2,2875.7,0.4537]
[1764549237316,0.32864066,2877.1,2875.9,0.405504]
[1764549237657,0.4964,2878.2,2875.8,0.258]
[1764549237658,3.656172,2877.8,2875.8,3.47729327]
[1764549237941,0.66656036,2877.7,2875.5,0.258]
[1764549238125,0.4964,2877.6,2874.9,0.4537]
[1764549238300,0.32864066,2876.2,2875.0,7.21452172]
[1764549238502,0.32864066,2876.5,2875.2,4.90956319]
[1764549238727,0.32864066,2876.7,2875.3,0.72559411]
[1764549238915,0.32864066,2876.7,2875.4,0.405504]
[1764549239244,6.94933882,2878.0,2875.4,0.405504]
[1764549239245,0.4964,2878.8,2876.7,1.45973877]
[1764549239534,0.66650736,2879.3,2877.6,1.13109811]
[1764549239713,0.32864065,2878.5,2877.6,1.13109811]
[1764549239914,0.4964,2879.5,2877.9,0.405504]
[1764549239915,0.32864065,2879.0,2877.9,0.405504]
[1764549240252,0.32864065,2879.6,2878.4,0.405504]
[1764549240425,0.32864065,2879.6,2877.7,5.03456319]
[1764549240607,0.4964,2879.5,2878.3,0.405504]
[1764549240807,0.32864065,2879.6,2878.7,0.405504]
[1764549241010,0.002,2880.1,2879.2,0.405504]
[1764549241247,0.4964,2881.8,2880.2,0.405504]
[1764549241248,0.32864065,2881.8,2880.2,0.405504]
[1764549241448,0.82504065,2881.8,2880.3,0.405504]
[1764549241605,0.32864065,2881.8,2880.5,0.72559411]
[1764549241958,0.32864065,2882.1,2880.8,0.405504]
[1764549242240,0.32864065,2881.9,2879.7,1.13109811]
[1764549242425,0.32864065,2881.4,2879.7,0.72559411]
[1764549242614,4.523803,2882.4,2879.8,0.405504]
[1764549242815,4.523803,2882.4,2879.0,3.47338277]
[1764549242816,0.1817,2881.5,2878.8,4.90956319]
[1764549243019,8.618558,2881.4,2878.5,0.119]
[1764549243216,8.618558,2881.4,2876.6,0.1466]
[1764549243217,2.088,2881.2,2877.8,4.90956319]
[1764549243428,2.088,2881.2,2878.3,4.90956319]
[1764549243429,0.32864065,2879.8,2878.3,4.90956319]